bitfinex/quotes_BTCUSD_20251116
["timestamp","ask_amount","ask_price","bid_price","bid_amount"]
[1763265073757,0.00045021,95957.0,95952.0,0.037548]
[1763265074168,0.00045021,95957.0,95953.0,0.037548]
[1763265074376,0.001,95954.0,95952.0,0.037548]
[1763265074921,0.00045021,95957.0,95953.0,0.037548]
[1763265075130,0.01635749,95954.0,95953.0,0.037548]
[1763265075339,0.01635749,95954.0,95949.0,0.05629553]
[1763265075962,0.01635749,95954.0,95950.0,0.08762203]
[1763265076942,0.01735749,95954.0,95950.0,0.08762203]
[1763265077355,0.01635749,95954.0,95950.0,0.0313265]
[1763265078314,0.01635749,95954.0,95951.0,0.05629553]
[1763265078986,0.01635749,95954.0,95952.0,0.01635749]
[1763265080004,0.03271457,95954.0,95952.0,0.01635749]
[1763265080563,0.01635749,95954.0,95952.0,0.01635749]
[1763265085541,0.00045021,95957.0,95952.0,0.01635749]
[1763265085744,0.00045021,95957.0,95955.0,0.03753158]
[1763265085920,0.00045021,95957.0,95956.0,0.02084288]
[1763265086146,0.00045021,95957.0,95956.0,0.05837446]
[1763265086527,0.00045021,95957.0,95956.0,0.07080446]
[1763265086734,0.00145021,95957.0,95956.0,0.07080446]
[1763265087138,0.00045021,95957.0,95956.0,0.07080446]
[1763265087524,0.00145021,95957.0,95956.0,0.07080446]
[1763265088157,0.00145021,95957.0,95956.0,0.04996158]
[1763265088772,0.01780713,95957.0,95956.0,0.04996158]
[1763265089398,0.01780713,95957.0,95956.0,0.03753158]
[1763265090630,0.03324713,95957.0,95956.0,0.03753158]
[1763265090876,0.03324713,95957.0,95950.0,0.03753158]
[1763265091098,0.01544,95953.0,95950.0,0.03753158]
[1763265091281,0.01544,95953.0,95923.0,0.09347162]
[1763265091282,0.02787,95951.0,95949.0,0.03753158]
[1763265091484,0.02787,95951.0,95943.0,0.03753158]
[1763265092269,0.02787,95951.0,95944.0,0.03753158]
[1763265092467,0.05111,95951.0,95944.0,0.03753158]
[1763265092955,0.05211,95951.0,95944.0,0.03753158]
[1763265093373,0.05111,95951.0,95943.0,0.03753158]
[1763265093628,0.05111,95951.0,95942.0,0.03753158]
[1763265093788,0.02887,95951.0,95942.0,0.03753158]
[1763265094216,0.01215,95943.0,95941.0,0.03753158]
[1763265094559,0.01215,95943.0,95911.0,0.146]
[1763265094560,0.01215,95943.0,95940.0,0.03753158]
[1763265094687,0.01627,95941.0,95940.0,0.03753158]
[1763265094918,0.01627,95941.0,95936.0,0.03753158]
[1763265095121,0.02324,95940.0,95935.0,0.03753158]
[1763265095321,0.02324,95940.0,95933.0,0.03753158]
[1763265096981,0.02424,95940.0,95933.0,0.03753158]
[1763265097390,0.02424,95940.0,95932.0,0.03753158]
[1763265098201,0.02324,95940.0,95932.0,0.03753158]
[1763265098652,0.02424,95940.0,95932.0,0.03753158]
[1763265099402,0.02424,95940.0,95931.0,0.03753158]
[1763265100481,0.02424,95940.0,95930.0,0.03753158]
[1763265101039,0.02324,95940.0,95930.0,0.03753158]
[1763265101488,0.02424,95940.0,95930.0,0.03753158]
[1763265102009,0.02324,95940.0,95930.0,0.03753158]
[1763265102192,0.02424,95940.0,95930.0,0.03753158]
[1763265103367,0.01215,95939.0,95929.0,0.03753158]
[1763265104177,0.04341874,95968.0,95929.0,0.03753158]
[1763265104377,1.487993,95948.0,95930.0,0.01152]
[1763265104620,1.487993,95948.0,95930.0,0.03452]
[1763265104825,1.487993,95948.0,95931.0,0.03476]
[1763265104990,0.001,95939.0,95931.0,0.05776]
[1763265105186,0.001,95939.0,95932.0,0.023]
[1763265105522,1.491303,95948.0,95932.0,0.023]
[1763265105731,1.030752,95947.0,95932.0,0.023]
[1763265106136,0.001,95948.0,95932.0,0.023]
[1763265106359,0.730471,95948.0,95932.0,0.023]
[1763265106518,0.001,95939.0,95932.0,0.023]
[1763265106928,0.001,95939.0,95935.0,0.00638]
[1763265107336,0.001,95939.0,95936.0,0.023]
[1763265107739,0.001,95948.0,95936.0,0.023]
[1763265108005,0.01635999,95950.0,95945.0,0.02752]
[1763265108180,0.01635999,95950.0,95947.0,0.016]
[1763265108181,0.001,95948.0,95947.0,0.016]
[1763265108545,0.01635999,95950.0,95947.0,0.016]
[1763265108791,0.001,95948.0,95947.0,0.016]
[1763265108995,0.002,95948.0,95947.0,0.016]
[1763265109218,0.001,95948.0,95947.0,0.016]
[1763265109417,0.01635999,95950.0,95947.0,0.016]
[1763265109637,0.001,95948.0,95947.0,0.016]
[1763265110863,0.33935999,95950.0,95947.0,0.016]
[1763265111055,0.34035999,95950.0,95947.0,0.016]
[1763265111259,0.324,95948.0,95947.0,0.016]
[1763265111490,0.001,95948.0,95947.0,0.016]
[1763265111809,0.01635999,95950.0,95947.0,0.016]
[1763265112009,0.34035999,95950.0,95947.0,0.016]
[1763265112217,0.34135999,95950.0,95947.0,0.016]
[1763265112433,0.33935999,95950.0,95947.0,0.016]
[1763265112674,0.33935999,95950.0,95947.0,0.039]
[1763265112869,0.324,95948.0,95947.0,0.039]
[1763265113924,0.325,95948.0,95947.0,0.039]
[1763265114125,0.002,95948.0,95947.0,0.039]
[1763265114530,0.001,95948.0,95947.0,0.016]
[1763265115554,0.002,95948.0,95947.0,0.016]
[1763265119475,0.01835894,95948.0,95947.0,0.016]
[1763265120446,0.01835894,95948.0,95945.0,0.01152]
[1763265120661,0.01835894,95948.0,95942.0,0.03753158]
[1763265121469,0.01735894,95948.0,95942.0,0.03753158]
[1763265121912,0.01835894,95948.0,95942.0,0.03753158]
[1763265122116,0.01735894,95948.0,95942.0,0.03753158]
[1763265122345,0.01735894,95948.0,95943.0,0.03753158]
[1763265122556,0.01835894,95948.0,95943.0,0.03753158]
[1763265123168,0.01735894,95948.0,95943.0,0.03753158]
[1763265124074,0.01835894,95948.0,95943.0,0.03753158]
[1763265124894,0.01835894,95948.0,95945.0,0.00899]
[1763265125114,0.01835894,95948.0,95946.0,0.03753158]
[1763265125369,0.01835894,95948.0,95947.0,0.06136158]
[1763265125904,0.01835894,95948.0,95947.0,0.03753158]
[1763265126234,0.01835894,95948.0,95945.0,0.02734894]
[1763265126703,0.01735894,95948.0,95945.0,0.02734894]
[1763265126912,0.01735894,95948.0,95946.0,0.02383]
[1763265127107,0.01835894,95948.0,95946.0,0.02383]
[1763265127356,0.01735894,95948.0,95946.0,0.02383]
[1763265127578,0.01835894,95948.0,95946.0,0.02383]
[1763265127783,0.01635894,95948.0,95946.0,0.02383]
[1763265128187,0.01735894,95948.0,95946.0,0.02383]
[1763265128395,0.01735894,95948.0,95946.0,0.04467505]
[1763265128667,0.01835894,95948.0,95946.0,0.04467505]
[1763265128860,0.01835894,95948.0,95947.0,0.02383]
[1763265129604,0.002,95948.0,95947.0,0.02383]
[1763265129805,0.001,95948.0,95947.0,0.02383]
[1763265130017,0.32844933,95970.0,95947.0,0.02383]
[1763265130018,0.187046,95969.0,95956.0,0.02654]
[1763265130228,0.51954767,95968.0,95964.0,0.00773]
[1763265130439,0.01835894,95979.0,95964.0,0.00773]
[1763265130440,0.132329,95969.0,95964.0,0.00773]
[1763265130644,0.323,95976.0,95969.0,0.01142]
[1763265130887,0.323,95973.0,95969.0,0.01142]
[1763265131088,0.468064,95971.0,95969.0,0.03525]
[1763265131286,0.472054,95972.0,95969.0,0.03525]
[1763265131550,0.323,95973.0,95969.0,0.01042]
[1763265131551,0.62748,95970.0,95969.0,0.01042]
[1763265131742,0.470462,95972.0,95969.0,0.01042]
[1763265131918,0.11389,95970.0,95969.0,0.01042]
[1763265132361,0.68805899,95970.0,95969.0,0.01042]
[1763265132501,1.016193,95972.0,95969.0,0.01042]
[1763265132716,0.516193,95972.0,95970.0,0.02383]
[1763265132927,0.512213,95971.0,95970.0,0.02383]
[1763265133180,0.516193,95972.0,95970.0,0.02383]
[1763265133384,0.839193,95972.0,95971.0,0.01193]
[1763265134268,0.839193,95972.0,95971.0,0.00993]
[1763265134635,0.840193,95972.0,95971.0,0.00993]
[1763265134833,0.841193,95972.0,95971.0,0.00993]
[1763265135141,0.675416,95972.0,95971.0,0.00993]
[1763265136584,0.69177272,95972.0,95971.0,0.00993]
[1763265146947,0.675416,95972.0,95971.0,0.00993]
[1763265148265,0.69494838,95972.0,95971.0,0.00993]
[1763265149580,0.71130534,95972.0,95971.0,0.00993]
[1763265149956,0.69494838,95972.0,95971.0,0.00993]
[1763265150162,0.71130532,95972.0,95971.0,0.00993]
[1763265151120,0.70088532,95972.0,95971.0,0.00993]
[1763265151973,0.527771,95971.0,95964.0,0.00773]
[1763265152179,0.36088932,95972.0,95956.0,4.511e-05]
[1763265152180,0.02541,95965.0,95956.0,4.511e-05]
[1763265152382,0.51512,95963.0,95956.0,4.511e-05]
[1763265152631,0.0233,95957.0,95956.0,4.511e-05]
[1763265153448,0.04284019,95957.0,95956.0,4.511e-05]
[1763265154701,0.04384019,95957.0,95956.0,4.511e-05]
[1763265154878,0.04484019,95957.0,95956.0,4.511e-05]
[1763265156981,0.85745688,95957.0,95956.0,4.511e-05]
[1763265157182,0.64903019,95957.0,95956.0,4.511e-05]
[1763265157391,0.63391019,95957.0,95956.0,4.511e-05]
[1763265157584,0.62573019,95957.0,95956.0,4.511e-05]
[1763265157803,0.198142,95957.0,95956.0,4.511e-05]
[1763265158266,0.24397564,95957.0,95956.0,4.511e-05]
[1763265159257,0.21767564,95957.0,95956.0,4.511e-05]
[1763265160071,0.56697564,95957.0,95956.0,4.511e-05]
[1763265160274,0.77540233,95957.0,95956.0,4.511e-05]
[1763265160489,0.79721184,95957.0,95956.0,4.511e-05]
[1763265160812,0.78085258,95957.0,95956.0,4.511e-05]
[1763265161600,0.77985258,95957.0,95956.0,4.511e-05]
[1763265162329,0.78085258,95957.0,95956.0,4.511e-05]
[1763265162545,0.78185258,95957.0,95956.0,4.511e-05]
[1763265163082,0.81318942,95957.0,95956.0,4.511e-05]
[1763265163381,0.85460816,95957.0,95956.0,4.511e-05]
[1763265163522,0.89644281,95957.0,95956.0,4.511e-05]
[1763265163735,0.89844281,95957.0,95956.0,4.511e-05]
[1763265164728,0.89744281,95957.0,95956.0,4.511e-05]
[1763265164925,0.89544281,95957.0,95956.0,4.511e-05]
[1763265165129,0.89844281,95957.0,95956.0,4.511e-05]
[1763265165839,0.87296882,95957.0,95956.0,4.511e-05]
[1763265176903,0.88932993,95957.0,95956.0,4.511e-05]
[1763265178983,0.99299931,95957.0,95956.0,4.511e-05]
[1763265179158,0.99299931,95957.0,95905.0,0.0119]
[1763265179160,0.20852431,95913.0,95905.0,0.0119]
[1763265179453,0.141825,95914.0,95905.0,0.03670021]
[1763265179600,0.152446,95916.0,95905.0,0.03670021]
[1763265179803,0.638891,95916.0,95906.0,0.02435]
[1763265180245,0.01949457,95915.0,95906.0,0.02435]
[1763265180441,0.14293,95914.0,95906.0,0.02435]
[1763265180642,0.172496,95915.0,95906.0,0.02435]
[1763265180953,0.51949555,95914.0,95906.0,0.02435]
[1763265181138,0.172496,95915.0,95906.0,0.02435]
[1763265181336,0.117472,95913.0,95906.0,0.02435]
[1763265181549,0.323,95917.0,95905.0,0.00045021]
[1763265181550,0.02641,95907.0,95905.0,0.00045021]
[1763265181756,1.78142162,95906.0,95905.0,0.00045021]
[1763265181990,1.82815233,95906.0,95905.0,0.00045021]
[1763265182354,1.87157107,95906.0,95905.0,0.00045021]
[1763265182559,1.87157107,95906.0,95905.0,2.1e-07]
[1763265182560,1.91341928,95906.0,95905.0,2.1e-07]
[1763265182872,1.93078673,95906.0,95905.0,2.1e-07]
[1763265183073,1.91441925,95906.0,95905.0,2.1e-07]
[1763265183257,1.91341925,95906.0,95905.0,2.1e-07]
[1763265183755,1.91741925,95906.0,95905.0,2.1e-07]
[1763265184796,1.94369235,95906.0,95905.0,2.1e-07]
[1763265185412,1.93969235,95906.0,95905.0,2.1e-07]
[1763265185753,1.94469235,95906.0,95905.0,2.1e-07]
[1763265186291,1.93478845,95906.0,95905.0,2.1e-07]
[1763265186722,1.94614524,95906.0,95905.0,2.1e-07]
[1763265186922,1.94614524,95906.0,95850.0,0.0004]
[1763265186923,0.57503239,95871.0,95850.0,0.0004]
[1763265187124,0.57503239,95871.0,95870.0,0.00044504]
[1763265187125,2.61115649,95871.0,95870.0,0.00044504]
[1763265187326,2.64196449,95871.0,95870.0,0.00044504]
[1763265187503,2.64614716,95871.0,95870.0,0.00044504]
[1763265187702,2.62805569,95871.0,95870.0,0.00044504]
[1763265188422,2.63005569,95871.0,95870.0,0.00044504]
[1763265188803,2.62805569,95871.0,95870.0,0.00044504]
[1763265189004,2.63005569,95871.0,95870.0,0.00044504]
[1763265189204,2.63205569,95871.0,95870.0,0.00044504]
[1763265189634,2.61933916,95871.0,95870.0,0.00044504]
[1763265190211,1.70404716,95871.0,95870.0,0.00044504]
[1763265190755,1.70950286,95871.0,95870.0,0.00044504]
[1763265190954,1.70750286,95871.0,95870.0,0.00044504]
[1763265191358,1.70950286,95871.0,95870.0,0.00044504]
[1763265191562,1.70950286,95871.0,95850.0,0.0004]
[1763265191565,2.57505416,95861.0,95850.0,0.0004]
[1763265191800,0.20863004,95864.0,95850.0,0.0004]
[1763265191801,2.60277592,95851.0,95850.0,0.0004]
[1763265192022,0.53167895,95841.0,95820.0,0.0004]
[1763265192216,2.61122179,95841.0,95840.0,0.00044501]
[1763265192389,2.61540562,95841.0,95840.0,0.00044501]
[1763265192722,2.37878062,95841.0,95840.0,0.00044501]
[1763265192940,2.29696862,95841.0,95840.0,0.00044501]
[1763265193110,2.29796862,95841.0,95840.0,0.00161568]
[1763265193318,2.29696862,95841.0,95840.0,0.00161568]
[1763265193664,2.29896862,95841.0,95840.0,0.00161568]
[1763265194209,2.29896862,95841.0,95820.0,0.0004]
[1763265194210,2.57514125,95821.0,95820.0,0.0004]
[1763265194419,2.61116535,95821.0,95820.0,0.00084994]
[1763265195029,2.61116535,95821.0,95820.0,0.00139499]
[1763265195655,2.62606604,95821.0,95820.0,0.00139499]
[1763265195878,2.41834353,95821.0,95820.0,0.00139499]
[1763265197530,2.62706604,95821.0,95820.0,0.00139499]
[1763265197721,2.41834353,95821.0,95820.0,0.00139499]
[1763265198132,1.68898979,95821.0,95820.0,0.00139499]
[1763265198365,1.6760891,95821.0,95820.0,0.00139499]
[1763265198567,1.6883991,95821.0,95820.0,0.00139499]
[1763265198775,1.2234141,95821.0,95820.0,0.00139499]
[1763265198974,1.2111041,95821.0,95820.0,0.00139499]
[1763265199185,1.2081041,95821.0,95820.0,0.00139499]
[1763265199466,1.2091041,95821.0,95820.0,0.00139499]
[1763265199636,1.2111041,95821.0,95820.0,0.00139499]
[1763265199858,1.0279161,95821.0,95820.0,0.00139499]
[1763265202939,0.5157741,95821.0,95820.0,0.00139499]
[1763265204062,0.4911721,95821.0,95820.0,0.00139499]
[1763265204292,0.4776121,95821.0,95820.0,0.00139499]
[1763265204451,0.4772711,95821.0,95820.0,0.00139499]
[1763265204645,0.0224941,95821.0,95820.0,0.00139499]
[1763265205660,0.0224941,95821.0,95820.0,0.02490499]
[1763265206652,0.0204941,95821.0,95820.0,0.02490499]
[1763265207270,0.02030738,95821.0,95820.0,0.02490499]
[1763265207480,0.106932,95841.0,95820.0,0.02490499]
[1763265207737,0.01931241,95840.0,95829.0,0.02892]
[1763265207938,0.01931241,95839.0,95831.0,0.00024544]
[1763265208097,0.48816266,95850.0,95831.0,0.00024544]
[1763265208098,0.01931241,95838.0,95831.0,0.00024544]
[1763265208311,0.01931241,95837.0,95832.0,0.02351]
[1763265208512,0.01931241,95836.0,95832.0,0.02351]
[1763265208731,0.01931241,95835.0,95831.0,0.00024544]
[1763265208923,0.01931241,95834.0,95831.0,0.00024544]
[1763265209126,0.501,95841.0,95831.0,0.00024544]
[1763265209127,0.01931241,95833.0,95831.0,0.00024544]
[1763265209494,0.01931241,95832.0,95831.0,0.00024544]
[1763265211056,0.02031241,95832.0,95831.0,0.00024544]
[1763265211251,0.15930541,95832.0,95831.0,0.00024544]
[1763265211902,0.02031241,95832.0,95831.0,0.00024544]
[1763265212110,0.02031241,95832.0,95831.0,0.00628544]
[1763265212543,0.03669058,95832.0,95831.0,0.00628544]
[1763265213370,0.03669058,95832.0,95831.0,0.00024544]
[1763265215504,0.20373158,95832.0,95831.0,0.00024544]
[1763265216042,0.13907358,95832.0,95831.0,0.00024544]
[1763265216570,0.13807358,95832.0,95831.0,0.00024544]
[1763265216776,0.13907358,95832.0,95831.0,0.00024544]
[1763265216948,0.03669058,95832.0,95831.0,0.00024544]
[1763265219348,0.02031241,95832.0,95831.0,0.00024544]
[1763265220107,0.01931241,95832.0,95831.0,0.00024544]
[1763265220329,0.02031241,95832.0,95831.0,0.00024544]
[1763265220887,0.01931241,95832.0,95831.0,0.00024544]
[1763265222173,0.02031241,95832.0,95831.0,0.00024544]
[1763265222516,0.02046787,95832.0,95831.0,0.00024544]
[1763265228793,0.02048268,95832.0,95831.0,0.00024544]
[1763265233408,0.02048268,95832.0,95829.0,0.02264]
[1763265233613,0.01948268,95831.0,95829.0,0.0435105]
[1763265233815,0.01948268,95830.0,95829.0,0.0435105]
[1763265234052,0.01948268,95830.0,95827.0,0.03267094]
[1763265234257,0.01948268,95829.0,95827.0,0.03267094]
[1763265234472,0.01948268,95828.0,95827.0,0.03267094]
[1763265234646,0.01948268,95828.0,95827.0,0.0118]
[1763265236393,0.01948268,95828.0,95827.0,0.04934494]
[1763265237356,0.32369456,95849.0,95836.0,0.02752]
[1763265237357,0.28949689,95848.0,95836.0,0.02752]
[1763265237563,0.211128,95846.0,95836.0,0.02752]
[1763265237765,0.179699,95844.0,95837.0,0.02264]
[1763265238050,0.126715,95842.0,95837.0,0.02264]
[1763265238255,0.519527,95841.0,95837.0,0.02264]
[1763265238465,0.27064034,95850.0,95827.0,0.04940251]
[1763265238466,0.02733,95838.0,95827.0,0.04940251]
[1763265238673,0.019527,95837.0,95827.0,0.0118]
[1763265238879,0.019527,95837.0,95828.0,0.02264]
[1763265239079,0.019527,95836.0,95828.0,0.02264]
[1763265239279,0.019527,95835.0,95828.0,0.02264]
[1763265239512,0.2600449,95840.0,95828.0,0.02264]
[1763265239513,0.019527,95834.0,95828.0,0.02264]
[1763265239730,0.019527,95833.0,95828.0,0.02264]
[1763265239918,0.001,95841.0,95839.0,0.0233]
[1763265240126,0.001,95841.0,95840.0,0.03836]
[1763265240528,0.001,95841.0,95840.0,0.01572]
[1763265240529,0.01953247,95841.0,95840.0,0.01572]
[1763265241612,0.02053247,95841.0,95840.0,0.01572]
[1763265241816,0.001,95841.0,95840.0,0.01572]
[1763265250860,0.001,95841.0,95840.0,0.03760251]
[1763265251061,0.001,95841.0,95839.0,0.02844833]
[1763265251481,0.001,95841.0,95840.0,0.04349811]
[1763265251915,0.001,95841.0,95839.0,0.00758]
[1763265252130,0.001,95841.0,95840.0,0.02086811]
[1763265252380,0.001,95841.0,95840.0,0.04349811]
[1763265252582,0.01637571,95848.0,95840.0,0.04349811]
[1763265252793,0.50069456,95877.0,95849.0,0.02875]
[1763265252794,0.323,95875.0,95849.0,0.02875]
[1763265253034,0.323,95871.0,95855.0,0.03759594]
[1763265253344,0.323,95873.0,95849.0,0.08514391]
[1763265253345,0.323,95869.0,95856.0,0.03539]
[1763265253544,0.323,95867.0,95856.0,0.03539]
[1763265253757,0.01953387,95866.0,95865.0,0.00605]
[1763265254114,0.01953387,95866.0,95865.0,0.03013]
[1763265254537,0.323,95875.0,95865.0,0.03013]
[1763265254705,0.323,95873.0,95865.0,0.03013]
[1763265254902,0.323,95871.0,95865.0,0.03013]
[1763265255103,0.51951945,95870.0,95865.0,0.03013]
[1763265255366,0.01951945,95869.0,95865.0,0.03013]
[1763265255666,0.323,95871.0,95865.0,0.03013]
[1763265255805,0.001,95867.0,95865.0,0.03013]
[1763265256022,0.001,95867.0,95866.0,0.02408]
[1763265256227,0.5,95869.0,95866.0,0.02408]
[1763265256449,0.0163728,95870.0,95866.0,0.02408]
[1763265256652,0.001,95869.0,95866.0,0.02408]
[1763265257082,0.0163728,95870.0,95866.0,0.02408]
[1763265257390,0.001,95869.0,95866.0,0.02408]
[1763265258690,0.0163728,95870.0,95866.0,0.02408]
[1763265259155,0.0173728,95870.0,95866.0,0.02408]
[1763265259363,0.001,95870.0,95866.0,0.02408]
[1763265260000,0.00545484,95878.0,95866.0,0.02408]
[1763265260403,0.00545484,95878.0,95874.0,0.01131]
[1763265260811,0.00545484,95878.0,95874.0,0.01031]
[1763265261357,0.32313492,95875.0,95874.0,0.01031]
[1763265261543,0.00013492,95875.0,95874.0,0.03439]
[1763265262140,0.00013492,95875.0,95874.0,0.01031]
[1763265262285,0.00113492,95875.0,95874.0,0.01031]
[1763265262705,0.00013492,95875.0,95874.0,0.01031]
[1763265263149,0.00113492,95875.0,95874.0,0.01031]
[1763265263551,0.00013492,95875.0,95874.0,0.01031]
[1763265270503,0.00013492,95875.0,95865.0,0.00605]
[1763265270505,0.01670492,95875.0,95865.0,0.00605]
[1763265270917,0.40545104,95875.0,95865.0,0.00605]
[1763265271127,0.40545104,95875.0,95852.0,0.03759594]
[1763265271128,0.02797,95866.0,95853.0,0.02408]
[1763265271357,0.02797,95866.0,95851.0,0.01131]
[1763265271358,0.38874612,95863.0,95851.0,0.01131]
[1763265271776,0.01129,95862.0,95851.0,0.01131]
[1763265273053,0.01229,95862.0,95851.0,0.01131]
[1763265273910,0.01229,95862.0,95852.0,0.02322]
[1763265274712,0.01129,95862.0,95852.0,0.02322]
[1763265275136,0.01229,95862.0,95852.0,0.02322]
[1763265275546,0.001,95862.0,95852.0,0.02322]
[1763265277251,0.001,95862.0,95851.0,0.01131]
[1763265277728,0.38874612,95861.0,95851.0,0.01131]
[1763265278231,0.02337,95865.0,95851.0,0.01131]
[1763265278443,0.38874612,95861.0,95851.0,0.01131]
[1763265279110,0.38974612,95861.0,95851.0,0.01131]
[1763265281183,0.38874612,95861.0,95851.0,0.01131]
[1763265281591,0.38974612,95861.0,95851.0,0.01131]
[1763265284471,0.00069456,95860.0,95851.0,0.01131]
[1763265285332,0.00069456,95860.0,95852.0,0.02322]
[1763265285477,0.0114,95866.0,95852.0,0.02322]
[1763265285478,0.00069456,95865.0,95852.0,0.02322]
[1763265285670,0.00069456,95864.0,95852.0,0.02322]
[1763265286612,0.001,95860.0,95852.0,0.02322]
[1763265286929,0.00169456,95860.0,95852.0,0.02322]
[1763265287096,0.38874612,95862.0,95852.0,0.02322]
[1763265287321,0.00069456,95861.0,95852.0,0.02322]
[1763265288095,0.00069456,95865.0,95852.0,0.02322]
[1763265288305,0.001,95862.0,95852.0,0.0440855]
[1763265288749,0.001,95862.0,95853.0,0.02322]
[1763265288956,0.001,95862.0,95861.0,0.00904]
[1763265289584,0.50069456,95866.0,95861.0,0.00904]
[1763265290645,0.50169456,95866.0,95861.0,0.00904]
[1763265291662,0.50169456,95866.0,95851.0,0.03453]
[1763265291863,0.03477,95865.0,95851.0,0.03453]
[1763265292080,0.00069456,95864.0,95851.0,0.03453]
[1763265293843,0.00169456,95864.0,95851.0,0.03453]
[1763265295020,0.02506456,95864.0,95851.0,0.03453]
[1763265295190,0.38874612,95861.0,95851.0,0.03453]
[1763265295392,0.00069456,95860.0,95851.0,0.01131]
[1763265295620,0.01243456,95860.0,95851.0,0.01131]
[1763265297114,0.01333456,95860.0,95851.0,0.01131]
[1763265297410,0.00159456,95860.0,95852.0,0.02322]
[1763265297655,0.001,95860.0,95852.0,0.02322]
[1763265298159,0.001,95860.0,95850.0,0.03759594]
[1763265298319,0.39034068,95860.0,95849.0,0.04890594]
[1763265298519,0.39034068,95860.0,95834.0,0.03136354]
[1763265298520,0.02694,95850.0,95848.0,0.03759594]
[1763265298730,0.02694,95850.0,95839.0,0.01131]
[1763265298731,0.01565,95849.0,95842.0,0.03759594]
[1763265299118,0.01565,95849.0,95843.0,0.03759594]
[1763265299339,0.01129,95850.0,95843.0,0.03759594]
[1763265300018,0.323,95868.0,95852.0,0.01135]
[1763265300019,0.02882528,95864.0,95852.0,0.01135]
[1763265300246,0.01952456,95860.0,95852.0,0.01135]
[1763265300450,0.01952456,95859.0,95853.0,0.04408528]
[1763265300778,0.33429,95874.0,95863.0,0.01664]
[1763265300779,0.50059456,95869.0,95863.0,0.01664]
[1763265300979,0.01952569,95868.0,95864.0,0.02322]
[1763265301184,0.01952569,95868.0,95864.0,0.03457]
[1763265301392,0.01952569,95867.0,95864.0,0.03457]
[1763265301602,0.12362569,95866.0,95864.0,0.03457]
[1763265301810,0.01952569,95865.0,95864.0,0.01135]
[1763265302432,0.01952569,95866.0,95864.0,0.01135]
[1763265302614,0.01952569,95865.0,95864.0,0.01135]
[1763265302917,0.2,95930.0,95864.0,0.01135]
[1763265302918,0.01174,95884.0,95864.0,0.01135]
[1763265303148,0.323,95877.0,95873.0,0.01155]
[1763265303351,0.5,95878.0,95864.0,0.01135]
[1763265303352,0.323,95873.0,95864.0,0.03573]
[1763265303487,0.323,95871.0,95864.0,0.01135]
[1763265303721,0.02014311,95870.0,95865.0,0.02438]
[1763265304084,0.51954855,95869.0,95865.0,0.02438]
[1763265304237,0.02014311,95868.0,95866.0,0.00867]
[1763265304445,0.01954855,95867.0,95866.0,0.00867]
[1763265304644,0.01954855,95867.0,95866.0,0.03305]
[1763265305047,0.01954855,95867.0,95866.0,0.00867]
[1763265306955,0.02054855,95867.0,95866.0,0.00867]
[1763265309577,0.001,95867.0,95866.0,0.00867]
[1763265310253,0.001,95867.0,95866.0,0.06504737]
[1763265310583,0.001,95867.0,95866.0,0.00867]
[1763265311331,0.00013492,95875.0,95866.0,0.00867]
[1763265311683,0.00013492,95875.0,95871.0,0.05634184]
[1763265311822,0.00013492,95875.0,95874.0,0.02727]
[1763265312152,0.00013492,95875.0,95874.0,0.01155]
[1763265312355,0.00013492,95875.0,95874.0,0.04909906]
[1763265312542,0.00013492,95875.0,95872.0,0.03754906]
[1763265312788,0.00013492,95875.0,95866.0,0.06501184]
[1763265312789,0.00013492,95875.0,95871.0,0.03754906]
[1763265312958,0.00013492,95875.0,95864.0,0.04889906]
[1763265313157,0.38874612,95874.0,95864.0,0.04889906]
[1763265313360,0.00059456,95873.0,95864.0,0.01135]
[1763265313545,0.02534456,95873.0,95862.0,0.03754906]
[1763265313744,0.02534456,95873.0,95859.0,0.00822]
[1763265313947,0.38874612,95869.0,95859.0,0.00822]
[1763265314151,0.00059456,95868.0,95859.0,0.00822]
[1763265315182,0.00059456,95868.0,95859.0,0.03133]
[1763265315378,0.38874612,95869.0,95859.0,0.03133]
[1763265315964,0.03632,95868.0,95858.0,0.03754906]
[1763265316505,0.01157,95868.0,95859.0,0.00822]
[1763265316707,0.01157,95868.0,95858.0,0.03754906]
[1763265316851,0.03632,95868.0,95858.0,0.03754906]
[1763265319665,0.01157,95868.0,95858.0,0.03754906]
[1763265319973,0.01157,95868.0,95859.0,0.00822]
[1763265321668,0.00059456,95869.0,95860.0,0.02311]
[1763265321881,0.01157,95871.0,95860.0,0.02311]
[1763265322086,0.00059456,95870.0,95860.0,0.02311]
[1763265322426,0.00059456,95870.0,95859.0,0.00822]
[1763265323318,0.02534456,95870.0,95859.0,0.00822]
[1763265324652,0.02534456,95870.0,95857.0,0.04909906]
[1763265324791,0.02534456,95870.0,95852.0,0.05634184]
[1763265324792,0.0277,95860.0,95854.0,0.03754906]
[1763265325002,0.0277,95860.0,95851.0,0.01115]
[1763265325227,0.0277,95860.0,95849.0,0.03754906]
[1763265325426,0.02742,95852.0,95847.0,0.03754906]
[1763265326237,0.01129,95852.0,95847.0,0.03754906]
[1763265327316,0.01129,95852.0,95846.0,0.03754906]
[1763265327520,0.001,95852.0,95846.0,0.06065906]
[1763265327746,0.001,95852.0,95847.0,0.02311]
[1763265327945,0.001,95852.0,95848.0,0.03754906]
[1763265328158,0.00059456,95864.0,95856.0,0.0278]
[1763265328159,0.323,95863.0,95856.0,0.0278]
[1763265328361,0.00059456,95862.0,95856.0,0.0278]
[1763265328768,0.00059456,95862.0,95856.0,0.01181]
[1763265329377,0.26449,95863.0,95856.0,0.01181]
[1763265329568,0.00059456,95862.0,95856.0,0.01181]
[1763265329771,0.323,95863.0,95856.0,0.01181]
[1763265329970,0.00059456,95862.0,95856.0,0.01181]
[1763265330949,0.423735,95863.0,95856.0,0.01181]
[1763265331152,0.00159456,95862.0,95856.0,0.01181]
[1763265331489,0.00159456,95862.0,95856.0,0.03519]
[1763265331984,0.00059456,95862.0,95856.0,0.01181]
[1763265332184,0.324,95863.0,95856.0,0.01181]
[1763265332389,0.00059456,95862.0,95856.0,0.01181]
[1763265332741,0.00059456,95862.0,95857.0,0.02338]
[1763265333418,0.00059456,95862.0,95856.0,0.01181]
[1763265334002,0.00159456,95862.0,95856.0,0.01181]
[1763265340656,0.001,95862.0,95857.0,0.02338]